bitfinex-derivatives/quotes_SOLF0:USTF0_20250625
["timestamp","ask_amount","ask_price","bid_price","bid_amount"]
[1750850724388,38.55222349,145.68,145.62,12.6477535]
[1750850726499,38.55222349,145.68,145.61,12.6477535]
[1750850727996,3.39222349,145.66,145.61,12.6477535]
[1750850728195,3.39222349,145.66,145.6,17.2654535]
[1750850728595,3.39222349,145.66,145.6,4.6177]
[1750850732319,3.39222349,145.66,145.6,17.2654535]
[1750850732621,3.39222349,145.66,145.6,20.65767699]
[1750850732809,38.55222349,145.68,145.6,20.65767699]
[1750850733610,35.12,145.71,145.62,3.39222349]
[1750850733819,3.39222349,145.71,145.64,3.39222349]
[1750850734715,3.39222349,145.71,145.64,16.03997699]
[1750850735716,3.39222349,145.71,145.65,2.354]
[1750850736123,3.39222349,145.74,145.66,5.64522349]
[1750850736415,3.39222349,145.74,145.67,35.12]
[1750850739113,35.12,145.75,145.68,3.39222349]
[1750850740016,5.39222349,145.76,145.7,3.39222349]
[1750850741118,5.39222349,145.76,145.68,3.39222349]
[1750850746623,2.0,145.76,145.72,3.39222349]
[1750850746924,2.0,145.76,145.73,2.2649]
[1750850751018,2.0,145.76,145.73,7.0008]
[1750850760525,38.49222349,145.81,145.73,7.0008]
[1750850761026,38.49222349,145.81,145.74,3.39222349]
[1750850761232,3.39222349,145.83,145.74,3.39222349]
[1750850761530,3.39222349,145.83,145.76,3.39222349]
[1750850761733,3.39222349,145.83,145.77,35.1]
[1750850764632,35.06,145.87,145.78,3.39222349]
[1750850764832,3.39222349,145.86,145.79,2.4414]
[1750850768429,3.39222349,145.86,145.79,7.0289]
[1750850768935,35.06,145.87,145.79,7.0289]
[1750850769128,38.45222349,145.87,145.79,10.42112349]
[1750850769329,35.06,145.87,145.79,10.42112349]
[1750850769530,3.39222349,145.89,145.81,3.39222349]
[1750850769733,3.39222349,145.89,145.82,35.04]
[1750850770026,35.04,145.9,145.82,35.04]
[1750850770229,3.39222349,145.87,145.79,42.0689]
[1750850770426,3.39222349,145.87,145.79,45.46112349]
[1750850771934,1.19329287,145.92,145.83,3.39222349]
[1750850772138,3.39222349,145.91,145.83,38.43222349]
[1750850772431,627.44,145.93,145.83,38.43222349]
[1750850772634,3.39222349,145.9,145.83,38.43222349]
[1750850772933,3.39222349,145.91,145.83,38.43222349]
[1750850774134,3.39222349,145.89,145.83,35.04]
[1750850774833,3.39222349,145.89,145.83,38.43222349]
[1750850775430,3.39222349,145.91,145.83,38.43222349]
[1750850777337,3.39222349,145.89,145.83,38.43222349]
[1750850777634,38.43222349,145.89,145.83,35.04]
[1750850778635,35.04,145.89,145.83,38.43222349]
[1750850778935,35.04,145.92,145.85,3.39222349]
[1750850779931,35.04,145.92,145.85,5.78772349]
[1750850781431,3.39222349,145.91,145.85,2.3955]
[1750850782519,35.04,145.92,145.86,3.39222349]
[1750850783540,3.39222349,145.89,145.85,2.3955]
[1750850783735,3.39222349,145.87,145.8,38.41222349]
[1750850786729,35.02,145.88,145.8,38.41222349]
[1750850787538,35.02,145.88,145.81,3.39222349]
[1750850791039,3.39222349,145.87,145.8,35.02]
[1750850791242,3.39222349,145.85,145.8,35.02]
[1750850794447,35.02,145.88,145.8,35.02]
[1750850794648,3.39222349,145.86,145.8,35.02]
[1750850801147,3.39222349,145.87,145.8,35.02]
[1750850801449,38.41222349,145.88,145.8,38.41222349]
[1750850802852,3.39222349,145.86,145.8,35.02]
[1750850803150,3.39222349,145.84,145.8,35.02]
[1750850804346,3.39222349,145.86,145.8,35.02]
[1750850805145,35.02,145.88,145.8,35.02]
[1750850805350,3.39222349,145.87,145.8,35.02]
[1750850807050,3.39222349,145.87,145.79,137.47222349]
[1750850807051,3.39222349,145.85,145.78,6.8104]
[1750850807252,35.02,145.88,145.78,6.8104]
[1750850807253,3.39222349,145.83,145.78,6.8104]
[1750850811357,3.39222349,145.85,145.78,6.8104]
[1750850812360,3.39222349,145.85,145.78,19.45723396]
[1750850813256,3.39222349,145.87,145.79,3.39222349]
[1750850813961,3.39222349,145.87,145.78,6.8104]
[1750850814259,3.39222349,145.87,145.79,3.39222349]
[1750850815560,3.39222349,145.87,145.79,16.14746255]
[1750850815956,3.39222349,145.87,145.79,3.39222349]
[1750850817063,3.39222349,145.87,145.79,16.14746255]
[1750850818054,2.3885,145.9,145.81,3.39222349]
[1750850818055,3.39222349,145.9,145.81,3.39222349]
[1750850818256,3.39222349,145.9,145.83,3.39222349]
[1750850818459,3.39222349,145.9,145.84,7.0664]
[1750850820655,3.39222349,145.88,145.84,2.2941]
[1750850820855,3.39222349,145.86,145.83,134.14]
[1750850821066,3.39222349,145.86,145.82,35.08]
[1750850821269,3.39222349,145.84,145.79,6.9832]
[1750850824758,3.39222349,145.86,145.79,6.9832]
[1750850825661,35.06,145.87,145.82,3.39222349]
[1750850825866,3.39222349,145.89,145.82,38.51222349]
[1750850828260,35.12,145.9,145.82,38.51222349]
[1750850830866,35.12,145.9,145.84,3.39222349]
[1750850838887,3.39222349,145.89,145.82,35.12]
[1750850839692,38.51222349,145.9,145.82,35.12]
[1750850839987,38.51222349,145.9,145.83,3.39222349]
[1750850840690,38.51222349,145.9,145.84,2.2444]
[1750850841189,38.51222349,145.9,145.85,2.261]
[1750850842588,35.12,145.9,145.85,2.261]
[1750850843790,3.39222349,145.92,145.85,2.261]
[1750850845586,3.39222349,145.92,145.85,5.65322349]
[1750850845787,35.1,145.93,145.86,35.1]
[1750850849691,3.39222349,145.92,145.86,35.1]
[1750850867306,35.1,145.93,145.86,35.1]
[1750850867507,3.39222349,145.92,145.86,35.1]
[1750850868304,3.39222349,145.9,145.85,4.4975]
[1750850868513,3.39222349,145.9,145.85,2.261]
[1750850869707,3.39222349,145.88,145.83,35.0]
[1750850872315,35.0,145.89,145.83,35.0]
[1750850872522,3.39222349,145.88,145.83,35.0]
[1750850877716,3.39222349,145.88,145.82,2.2394]
[1750850878217,3.39222349,145.86,145.8,55.73748247]
[1750850878416,3.39222349,145.86,145.8,39.6083]
[1750850880614,3.39222349,145.84,145.78,12.73695898]
[1750850880917,3.39222349,145.82,145.77,37.2247]
[1750850882014,3.39222349,145.84,145.77,53.35388247]
[1750850882211,3.39222349,145.84,145.77,40.61692349]
[1750850884318,3.39222349,145.84,145.77,37.2247]
[1750850884522,3.39222349,145.84,145.77,40.61692349]
[1750850887222,3.39222349,145.84,145.78,2.3125]
[1750850894330,3.39222349,145.79,145.74,12.73695898]
[1750850894521,3.39222349,145.75,145.69,2.251]
[1750850894826,3.39222349,145.71,145.69,2.251]
[1750850895036,3.39222349,145.73,145.69,2.251]
[1750850895217,3.39222349,145.73,145.7,34.98]
[1750850895623,3.39222349,145.73,145.69,2.251]
[1750850895831,3.39222349,145.73,145.7,34.98]
[1750850899118,3.39222349,145.75,145.7,34.98]
[1750850901640,3.39222349,145.79,145.71,3.39222349]
[1750850901832,3.39222349,145.79,145.73,3.39222349]
[1750850902027,3.39222349,145.8,145.74,39.8521]
[1750850902222,3.39222349,145.8,145.75,2.3308]
[1750850902733,3.39222349,145.83,145.75,5.72302349]
[1750850904529,35.0,145.85,145.75,5.72302349]
[1750850904728,3.39222349,145.83,145.75,5.72302349]
[1750850910237,3.39222349,145.83,145.77,3.39222349]
[1750850910438,3.39222349,145.84,145.78,35.0]
[1750850911342,3.39222349,145.82,145.78,35.0]
[1750850912633,3.39222349,145.82,145.75,5.72302349]
[1750850912832,3.39222349,145.82,145.76,35.0]
[1750850913036,3.39222349,145.84,145.77,3.39222349]
[1750850913939,3.39222349,145.84,145.78,35.0]
[1750850914635,3.39222349,145.84,145.77,3.39222349]
[1750850915237,3.39222349,145.84,145.78,35.0]
[1750850918034,3.39222349,145.84,145.78,34.98]
[1750850920239,3.39222349,145.84,145.76,3.39222349]
[1750850920442,3.39222349,145.82,145.77,34.98]
[1750850922839,4.88253559,145.85,145.77,34.98]
[1750850923038,3.39222349,145.84,145.77,38.37222349]
[1750850924130,4.88253559,145.86,145.77,38.37222349]
[1750850924339,8.27475908,145.86,145.79,3.39222349]
[1750850924541,3.39222349,145.86,145.8,6.8262]
[1750850924733,3.39222349,145.86,145.81,34.98]
[1750850927043,4.88253559,145.87,145.81,34.98]
[1750850927853,3.39222349,145.82,145.72,51.10918247]
[1750850928046,3.39222349,145.8,145.74,4.6938]
[1750850928451,40.88466977,145.88,145.74,8.08602349]
[1750850928751,3.39222349,145.83,145.74,8.08602349]
[1750850929858,3.39222349,145.83,145.74,20.82298247]
[1750850934471,3.39222349,145.83,145.74,8.08602349]
[1750850935158,3.39222349,145.83,145.75,34.98]
[1750850935866,3.39222349,145.83,145.76,38.37222349]
[1750850937168,3.39222349,145.83,145.77,34.98]
[1750850937469,3.39222349,145.83,145.75,62.0]
[1750850937669,3.39222349,145.83,145.76,34.98]
[1750850940777,3.39222349,145.86,145.79,3.39222349]
[1750850940974,3.39222349,145.86,145.8,42.1642]
[1750850941479,3.39222349,145.88,145.8,42.1642]
[1750850942076,8.29422166,145.88,145.8,42.1642]
[1750850942372,8.29422166,145.9,145.81,3.39222349]
[1750850942571,4.90065903,145.89,145.81,3.39222349]
[1750850942767,4.90065903,145.88,145.81,3.39222349]
[1750850943067,3.39222349,145.9,145.81,3.39222349]
[1750850943269,4.9180946,145.89,145.81,3.39222349]
[1750850943463,4.9180946,145.88,145.81,3.39222349]
[1750850943670,4.9180946,145.89,145.81,3.39222349]
[1750850943966,3.39222349,145.86,145.8,7.1842]
[1750850944161,3.39222349,145.84,145.81,34.98]
[1750850947173,3.39222349,145.84,145.8,7.1842]
[1750850947374,3.39222349,145.84,145.81,34.98]
[1750850948273,3.39222349,145.84,145.8,7.1842]
[1750850948582,3.39222349,145.84,145.8,42.1642]
[1750850949268,4.92849879,145.83,145.8,42.1642]
[1750850949582,3.39222349,145.84,145.8,42.1642]
[1750850953082,3.39222349,145.84,145.8,7.1842]
[1750850953382,3.39222349,145.84,145.81,34.98]
[1750850953582,3.39222349,145.86,145.81,34.98]
[1750850953778,4.8741575,145.85,145.81,34.98]
[1750850953982,3.39222349,145.86,145.81,34.98]
[1750850954182,4.87365116,145.85,145.81,34.98]
[1750850954384,5.57697532,145.89,145.81,34.98]
[1750850954682,3.39222349,145.87,145.81,34.98]
[1750850954874,4.87359122,145.86,145.81,34.98]
[1750850955075,3.39222349,145.87,145.81,34.98]
[1750850955277,4.87352071,145.86,145.81,34.98]
[1750850955476,3.39222349,145.87,145.81,34.98]
[1750850955679,3.39222349,145.85,145.81,34.98]
[1750850955983,4.87374761,145.84,145.81,34.98]
[1750850956178,3.39222349,145.85,145.8,7.1842]
[1750850956386,3.39222349,145.83,145.8,39.7822]
[1750850957383,3.39222349,145.81,145.78,627.2]
[1750850957579,3.39222349,145.81,145.78,34.98]
[1750850957786,3.39222349,145.81,145.76,37.2799]
[1750850959083,3.39222349,145.79,145.76,2.2999]
[1750850960990,3.39222349,145.79,145.76,37.2799]
[1750850965883,3.39222349,145.79,145.76,2.2999]
[1750850966893,3.39222349,145.79,145.76,37.2799]
[1750850968300,3.39222349,145.79,145.76,2.2999]
[1750850974600,3.39222349,145.79,145.74,39.6731]
[1750850975300,3.39222349,145.79,145.74,4.6931]
[1750850975696,3.39222349,145.81,145.74,8.08532349]
[1750850976603,34.98,145.84,145.74,8.08532349]
[1750850976796,3.39222349,145.81,145.74,8.08532349]
[1750850983604,3.39222349,145.81,145.74,20.84264468]
[1750850986310,3.39222349,145.81,145.74,8.08532349]
[1750850987003,3.39222349,145.81,145.74,17.45042119]
[1750850987316,3.39222349,145.81,145.75,34.96]
[1750850988311,8.24288975,145.81,145.75,34.96]
[1750850988508,3.39222349,145.81,145.75,34.96]
[1750850991713,3.39222349,145.79,145.75,34.96]
[1750850992114,3.39222349,145.79,145.74,4.6931]
[1750850992412,3.39222349,145.79,145.74,39.6531]
[1750850992612,3.39222349,145.79,145.74,4.6931]
[1750850992812,3.39222349,145.79,145.75,34.96]
[1750850995720,3.39222349,145.79,145.74,17.45042119]
[1750850995922,3.39222349,145.79,145.75,34.96]
[1750850996215,3.39222349,145.79,145.74,17.45042119]
[1750850996420,5.55969018,145.83,145.75,34.96]
[1750850996622,3.39222349,145.8,145.75,34.96]
[1750850998225,3.39222349,145.8,145.74,4.6931]
[1750850998415,3.39222349,145.8,145.75,34.96]
[1750850999119,3.39222349,145.8,145.74,4.6931]
[1750850999722,3.39222349,145.8,145.74,39.6531]
[1750850999919,3.39222349,145.8,145.75,34.96]
[1750851001519,3.39222349,145.8,145.74,52.41042119]
[1750851002021,3.39222349,145.8,145.74,39.6531]
[1750851002221,3.39222349,145.8,145.74,4.6931]
[1750851002425,3.39222349,145.8,145.74,39.6531]
[1750851002626,3.39222349,145.8,145.74,37.2221]
[1750851003123,3.39222349,145.8,145.74,49.97942119]
[1750851004119,3.39222349,145.8,145.75,34.96]
[1750851004320,3.39222349,145.8,145.74,15.01942119]
[1750851004516,38.37222349,145.84,145.75,47.73732119]
[1750851004517,3.39222349,145.81,145.75,47.73732119]
[1750851005624,3.39222349,145.81,145.75,12.75732119]
[1750851005830,3.39222349,145.81,145.75,47.73732119]
[1750851006430,3.39222349,145.81,145.75,12.75732119]
[1750851006629,3.39222349,145.81,145.75,47.73732119]
[1750851007030,3.39222349,145.81,145.75,12.75732119]
[1750851007223,3.39222349,145.81,145.75,34.98]
[1750851007423,3.39222349,145.81,145.75,47.73732119]
[1750851007721,3.39222349,145.81,145.75,34.98]
[1750851011127,3.39222349,145.81,145.74,15.01942119]
[1750851011333,3.39222349,145.81,145.75,34.92]
[1750851011716,3.39222349,145.81,145.74,15.01942119]
[1750851011921,3.39222349,145.81,145.75,34.92]
[1750851012331,3.39222349,145.81,145.75,47.67732119]
[1750851012830,3.39222349,145.81,145.75,34.92]
[1750851013427,3.39222349,145.81,145.74,49.93942119]
[1750851014533,3.39222349,145.81,145.74,15.01942119]
[1750851014732,3.39222349,145.81,145.75,34.92]
[1750851016328,2.1674476,145.78,145.75,34.92]
[1750851016725,2.1674476,145.79,145.75,34.92]
[1750851016931,5.55969018,145.83,145.75,34.92]
[1750851016932,5.55969018,145.82,145.76,2.1674476]
[1750851017135,2.1674476,145.8,145.77,2.365]
[1750851017537,5.55969018,145.83,145.77,4.5324476]
[1750851017736,2.1674476,145.82,145.78,2.1674476]
[1750851017935,2.1674476,145.83,145.79,4.5647476]
[1750851018233,3.38459541,145.84,145.79,37.3173]
[1750851018530,3.38459541,145.85,145.79,37.3173]
[1750851019038,8.94428559,145.86,145.79,40.70189541]
[1750851020439,3.38459541,145.86,145.79,40.70189541]
[1750851022737,3.38459541,145.88,145.79,40.70189541]
[1750851022935,8.93337704,145.89,145.81,3.38459541]
[1750851023142,8.93337704,145.89,145.82,2.3532]
[1750851023442,8.93337704,145.89,145.83,34.92]
[1750851023942,3.38459541,145.89,145.83,34.92]
[1750851028054,3.38459541,145.89,145.84,4.7054]
[1750851030658,3.38459541,145.89,145.84,2.3884]
[1750851030958,3.38459541,145.85,145.8,2.317]
[1750851033457,5.56217123,145.89,145.8,2.317]
[1750851033653,3.38459541,145.86,145.8,2.317]
[1750851035356,3.38459541,145.84,145.8,2.317]
[1750851045261,3.38459541,145.82,145.78,2.4408]
[1750851045461,3.38459541,145.8,145.78,2.4408]
[1750851046961,3.38459541,145.8,145.75,592.3]
[1750851047160,34.88,145.82,145.74,34.88]
[1750851047358,3.38459541,145.81,145.74,38.26459541]
[1750851047855,34.88,145.82,145.74,38.26459541]
[1750851048058,38.26459541,145.82,145.74,38.26459541]
[1750851049866,34.88,145.82,145.74,38.26459541]
[1750851050164,3.38459541,145.82,145.74,38.26459541]
[1750851054768,3.38459541,145.82,145.74,51.0219166]
[1750851056567,3.38459541,145.82,145.74,38.26459541]
[1750851058569,3.38459541,145.82,145.74,51.0219166]
[1750851059974,3.38459541,145.8,145.74,47.63732119]
[1750851060274,3.38459541,145.8,145.74,34.88]
[1750851061659,3.38459541,145.8,145.73,15.03032119]
[1750851061865,3.38459541,145.8,145.73,37.153]
[1750851063576,3.38459541,145.8,145.73,53.2949166]
[1750851063971,3.38459541,145.8,145.73,40.53759541]
[1750851064280,3.38459541,145.82,145.73,53.2949166]
[1750851064474,3.38459541,145.82,145.75,3.38459541]
[1750851066276,3.38459541,145.8,145.73,53.2949166]
[1750851066479,3.38459541,145.8,145.74,34.88]
[1750851079299,3.38459541,145.8,145.74,47.63732119]
[1750851080293,2.1673797,145.78,145.75,2.1673797]
[1750851080982,5.51971655,145.83,145.75,2.1673797]
[1750851081189,2.1673797,145.8,145.76,2.1673797]
[1750851081782,2.1673797,145.8,145.75,2.1673797]
[1750851081983,2.1673797,145.79,145.75,2.1673797]
[1750851082803,2.1673797,145.78,145.74,34.88]
[1750851083004,2.1673797,145.76,145.73,15.03032119]
[1750851084009,2.1673797,145.74,145.73,15.03032119]
[1750851084206,2.1673797,145.74,145.73,2.273]
[1750851085214,2.1673797,145.74,145.7,12.75732119]
[1750851085404,2.1673797,145.71,145.68,15.02102119]
[1750851086309,3.38994416,145.73,145.68,15.02102119]
[1750851086612,3.38994416,145.73,145.68,2.2637]
[1750851086803,3.38994416,145.73,145.69,2.2567]
[1750851088413,3.38994416,145.73,145.69,4.605]
[1750851089410,3.38994416,145.84,145.71,3.38994416]
[1750851089609,3.38994416,145.79,145.71,3.38994416]
[1750851089812,34.84,145.78,145.71,3.38994416]
[1750851091908,592.36,145.87,145.75,3.38994416]
[1750851092111,3.38994416,145.82,145.76,6.9085]
[1750851093609,34.84,145.85,145.76,6.9085]
[1750851093810,3.38994416,145.85,145.77,3.38994416]
[1750851094015,38.22994416,145.85,145.79,3.38994416]
[1750851096708,3.38994416,145.83,145.77,34.84]
[1750851098519,3.38994416,145.83,145.76,6.9085]
[1750851100013,3.38994416,145.83,145.77,3.38994416]
[1750851102019,3.38994416,145.84,145.77,3.38994416]
[1750851102216,34.84,145.85,145.79,3.38994416]
[1750851105922,38.18994416,145.88,145.81,3.38994416]
[1750851106121,3.38994416,145.88,145.82,4.8128]
[1750851106313,38.18994416,145.88,145.82,4.8128]
[1750851109326,34.8,145.88,145.82,39.5928]
[1750851109524,34.8,145.88,145.83,3.38994416]
[1750851113029,34.8,145.88,145.82,39.5928]
[1750851131343,3.38994416,145.87,145.78,38.16994416]
[1750851131542,3.38994416,145.85,145.78,38.16994416]
[1750851131945,41.9776997,145.88,145.78,38.16994416]
[1750851132138,3.38994416,145.85,145.78,38.16994416]
[1750851134042,3.38994416,145.85,145.78,40.53374416]
[1750851136236,37.1,145.88,145.78,40.53374416]
[1750851136237,34.8,145.88,145.82,3.38994416]
[1750851138246,38.18994416,145.88,145.82,3.38994416]
[1750851138750,34.8,145.88,145.82,3.38994416]
[1750851139042,38.18994416,145.88,145.82,3.38994416]
[1750851139245,34.8,145.88,145.82,3.38994416]
[1750851139446,38.18994416,145.88,145.82,3.38994416]
[1750851143053,4.89145868,145.87,145.82,3.38994416]
[1750851143250,38.18994416,145.88,145.82,3.38994416]
[1750851143453,4.89179082,145.87,145.82,3.38994416]
[1750851143751,38.18994416,145.88,145.82,3.38994416]
[1750851143940,4.89214716,145.87,145.82,3.38994416]
[1750851144145,38.18994416,145.88,145.82,3.38994416]
[1750851144453,3.38994416,145.86,145.81,34.74]
[1750851144646,4.89277735,145.85,145.81,34.74]
[1750851144847,3.38994416,145.86,145.79,2.4092]
[1750851145147,4.89277787,145.85,145.78,40.49374416]
[1750851145347,3.38994416,145.86,145.78,40.49374416]
[1750851145549,4.89280812,145.85,145.78,40.49374416]
[1750851145749,3.38994416,145.86,145.78,40.49374416]
[1750851145945,4.89655908,145.85,145.78,40.49374416]
[1750851146239,3.38994416,145.86,145.78,40.49374416]
[1750851146440,4.89596813,145.85,145.78,40.49374416]
[1750851146648,3.38994416,145.86,145.78,40.49374416]
[1750851146851,4.89596813,145.85,145.78,40.49374416]
[1750851147452,3.38994416,145.86,145.78,40.49374416]
[1750851147855,3.38994416,145.86,145.78,37.1038]
[1750851148047,3.38994416,145.86,145.79,3.38994416]
[1750851156161,3.38994416,145.86,145.78,37.1038]
[1750851156361,3.38994416,145.84,145.78,34.74]
[1750851157273,3.38994416,145.84,145.77,4.6204]
[1750851157574,3.38994416,145.84,145.77,39.3604]
[1750851157976,3.38994416,145.84,145.78,3.38994416]
[1750851160274,3.38994416,145.86,145.78,3.38994416]
[1750851160778,2.2365,145.88,145.8,3.38994416]
[1750851160975,34.74,145.9,145.82,3.38994416]
[1750851161179,34.74,145.9,145.83,2.3064]
[1750851162470,3.38994416,145.94,145.86,3.38994416]
[1750851162676,38.12994416,145.94,145.86,3.38994416]
[1750851162878,38.12994416,145.94,145.84,4.7658]
[1750851163076,38.12994416,145.94,145.87,3.38994416]
[1750851164079,34.74,145.94,145.87,3.38994416]
[1750851164779,34.74,145.94,145.89,3.38994416]
[1750851165175,34.68,145.95,145.89,3.38994416]
[1750851170977,3.38994416,145.98,145.91,3.38994416]
[1750851171279,34.66,145.97,145.91,3.38994416]
[1750851172184,3.38994416,145.99,145.9,37.0127]
[1750851172478,34.66,145.98,145.92,3.38994416]
[1750851172682,3.38994416,145.99,145.92,3.38994416]
[1750851172881,34.66,145.98,145.92,3.38994416]
[1750851173582,3.38994416,145.99,145.92,3.38994416]
[1750851174080,34.66,145.99,145.92,3.38994416]
[1750851179186,38.04994416,145.99,145.92,3.38994416]
[1750851181187,38.04994416,145.99,145.9,37.0127]
[1750851181390,38.04994416,145.99,145.92,3.38994416]
[1750851181984,3.38994416,145.97,145.9,37.0127]
[1750851184983,38.04994416,145.99,145.9,37.0127]
[1750851185185,38.04994416,145.99,145.91,3.38994416]
[1750851185389,3.38994416,145.97,145.91,3.38994416]
[1750851186093,3.38994416,145.97,145.9,37.0127]
[1750851186292,34.66,145.99,145.9,37.0127]
[1750851186485,3.38994416,145.97,145.9,37.0127]
[1750851187187,3.38994416,145.93,145.87,38.04994416]
[1750851187393,38.04994416,145.93,145.87,38.04994416]
[1750851187593,38.04994416,145.93,145.87,34.66]
[1750851187892,3.38994416,145.91,145.86,2.2656]
[1750851188193,34.66,145.93,145.86,2.2656]
[1750851188387,3.38994416,145.92,145.86,2.2656]
[1750851188697,34.66,145.93,145.86,2.2656]
[1750851188993,38.04994416,145.93,145.86,2.2656]
[1750851192197,34.66,145.93,145.86,5.65554416]
[1750851193500,34.66,145.93,145.86,2.2656]
[1750851193691,34.66,145.93,145.86,5.65554416]
[1750851195302,3.38994416,145.92,145.86,5.65554416]
[1750851195493,3.38994416,145.92,145.86,2.2656]
[1750851199303,34.66,145.93,145.86,5.65554416]
[1750851199807,34.66,145.93,145.88,3.38994416]
[1750851199996,3.38994416,145.95,145.88,3.38994416]
[1750851200293,34.62,145.94,145.88,3.38994416]
[1750851205108,34.62,145.94,145.86,2.2656]
[1750851205403,34.62,145.94,145.87,3.38994416]
[1750851209706,38.00994416,145.94,145.87,3.38994416]
[1750851220217,34.62,145.94,145.87,3.38994416]
[1750851220616,2.2755,145.97,145.89,3.38994416]
[1750851220819,34.62,145.96,145.89,3.38994416]
[1750851224719,38.00994416,145.96,145.89,3.38994416]
[1750851231417,34.62,145.96,145.89,3.38994416]
[1750851231622,34.62,145.96,145.91,3.38994416]
[1750851233533,591.8,146.0,145.93,3.38994416]
[1750851233730,34.58,146.01,145.93,3.38994416]
[1750851234637,3.38994416,146.0,145.93,3.38994416]
[1750851234934,3.38994416,146.0,145.92,34.58]
[1750851235535,3.38994416,146.0,145.93,3.38994416]
[1750851236238,3.38994416,146.0,145.92,34.58]
[1750851236433,3.38994416,145.98,145.92,37.96994416]
[1750851236633,34.58,145.97,145.9,3.38994416]
[1750851236932,37.0123,145.97,145.9,3.38994416]
[1750851240439,37.0123,145.97,145.89,34.58]
[1750851240639,37.0123,145.97,145.9,3.38994416]
[1750851243949,4.88954956,145.96,145.9,3.38994416]
[1750851244144,37.0123,145.97,145.9,3.38994416]
[1750851244333,4.89017773,145.96,145.9,3.38994416]
[1750851244537,37.0123,145.97,145.9,3.38994416]
[1750851244738,4.89017773,145.96,145.9,3.38994416]
[1750851244945,37.0123,145.97,145.9,3.38994416]
[1750851245144,4.89017773,145.96,145.9,3.38994416]
[1750851245350,37.0123,145.97,145.9,3.38994416]
[1750851245546,4.89012829,145.96,145.9,3.38994416]
[1750851245747,37.0123,145.97,145.9,3.38994416]
[1750851245940,4.89016363,145.96,145.9,3.38994416]
[1750851246140,37.0123,145.97,145.9,3.38994416]
[1750851246351,4.89014523,145.96,145.9,3.38994416]
[1750851246647,37.0123,145.97,145.9,3.38994416]
[1750851246832,4.89014523,145.96,145.9,3.38994416]
[1750851247037,37.0123,145.97,145.9,3.38994416]
[1750851247333,8.28008991,145.96,145.9,3.38994416]
[1750851247536,3.38994416,145.96,145.9,3.38994416]
[1750851250445,3.38994416,145.96,145.89,47.25360321]
[1750851250747,3.38994416,145.94,145.87,12.67360321]
[1750851250946,34.58,145.93,145.87,12.67360321]
[1750851251252,3.38994416,145.92,145.87,12.67360321]
[1750851251450,5.73304416,145.92,145.86,34.58]
[1750851251653,5.73304416,145.92,145.86,47.25360321]
[1750851251953,5.73304416,145.92,145.86,50.64354737]
[1750851252153,2.3431,145.92,145.86,50.64354737]
[1750851252549,5.73304416,145.92,145.86,34.58]
[1750851252747,3.38994416,145.9,145.84,12.67360321]
[1750851252952,3.38994416,145.88,145.82,12.67360321]
[1750851253149,34.58,145.89,145.82,12.67360321]
[1750851253450,3.38994416,145.88,145.82,12.67360321]
[1750851253852,3.38994416,145.88,145.81,12.67360321]
[1750851254354,3.38994416,145.88,145.8,50.64354737]
[1750851256748,37.96994416,145.89,145.82,3.38994416]
[1750851257541,3.38994416,145.89,145.82,3.38994416]
[1750851257741,8.24433764,145.89,145.82,3.38994416]
[1750851258453,3.38994416,145.89,145.82,3.38994416]
[1750851261252,37.92994416,145.89,145.82,3.38994416]
[1750851262646,3.38994416,145.89,145.82,3.38994416]
[1750851263153,34.54,145.9,145.8,47.25360321]
[1750851263352,34.54,145.9,145.84,3.38994416]
[1750851266060,4.84647418,145.92,145.88,3.38994416]
[1750851266258,34.54,145.98,145.9,3.38994416]
[1750851266564,4.84181449,145.98,145.89,34.54]
[1750851266755,4.84181449,145.98,145.91,3.38994416]
[1750851267153,3.38994416,145.97,145.89,37.92994416]
[1750851267676,34.54,145.99,145.93,3.38994416]
[1750851273764,3.38994416,145.98,145.9,3.38994416]
[1750851275464,3.38994416,145.98,145.92,3.38994416]
[1750851275667,34.54,145.99,145.92,3.38994416]
[1750851276360,3.38994416,146.0,145.92,3.38994416]
[1750851276557,34.54,145.99,145.92,3.38994416]
[1750851277668,34.54,145.99,145.94,3.38994416]
[1750851279170,34.54,145.99,145.89,109.23617252]
[1750851279370,34.54,145.99,145.93,3.38994416]
[1750851280967,37.92994416,145.99,145.93,3.38994416]
[1750851281467,37.92994416,145.99,145.91,3.38994416]